bitfinex-derivatives/quotes_SOLF0:USTF0_20230103
["timestamp","ask_amount","ask_price","bid_price","bid_amount"]
[1672712477223,4.06435586,11.151,11.144,4.0929961]
[1672712477537,0.06435586,11.151,11.146,4.03]
[1672712483635,4.03,11.15,11.144,4.0829961]
[1672712483950,2.0,11.149,11.144,4.0829961]
[1672712486053,4.03,11.15,11.144,4.0829961]
[1672712493722,4.03,11.145,11.133,50.0]
[1672712493929,4.0,11.141,11.133,49.654]
[1672712494144,4.0,11.141,11.135,4.03]
[1672712494668,0.06258284,11.142,11.139,4.03]
[1672712494879,0.06674154,11.144,11.139,4.03]
[1672712495082,0.06942354,11.145,11.139,4.03]
[1672712502135,4.03,11.14,11.124,67.42]
[1672712502344,4.03,11.135,11.129,4.03]
[1672712502555,3.0,11.134,11.129,4.03]
[1672712503395,4.03,11.13,11.12,4.02]
[1672712503604,16.1,11.133,11.12,4.02]
[1672712503605,4.03,11.127,11.12,4.02]
[1672712503815,3.0,11.126,11.12,4.02]
[1672712504127,4.0,11.125,11.119,4.03]
[1672712505076,4.03,11.124,11.118,0.06307812]
[1672712505706,4.03,11.124,11.118,3.3655567]
[1672712506118,3.06581542,11.126,11.12,4.02]
[1672712514532,3.06581542,11.126,11.119,8.1]
[1672712516847,0.06581542,11.126,11.119,8.1]
[1672712519263,8.1,11.122,11.118,0.06307812]
[1672712519474,8.1,11.12,11.112,8.1]
[1672712519787,3.0,11.119,11.112,8.1]
[1672712520630,3.06945814,11.119,11.112,8.16966166]
[1672712522626,3.0,11.127,11.119,3.0]
[1672712522940,3.0,11.127,11.12,8.07]
[1672712523565,3.06569597,11.127,11.12,8.13144323]
[1672712524835,8.1,11.126,11.12,0.06144323]
[1672712525048,3.0,11.125,11.12,0.06144323]
[1672712527981,8.05,11.121,11.12,0.06144323]
[1672712528202,8.05,11.121,11.113,8.1]
[1672712528512,3.0,11.12,11.113,8.1]
[1672712529135,3.06955414,11.12,11.113,8.16854564]
[1672712530515,8.05,11.119,11.113,0.06854564]
[1672712530725,3.0,11.118,11.113,0.06854564]
[1672712536401,8.05,11.117,11.113,0.06854564]
[1672712536609,3.0,11.116,11.113,0.06854564]
[1672712536817,3.0,11.116,11.111,0.06106766]
[1672712537133,3.0,11.116,11.11,0.06763371]
[1672712542811,8.11332909,11.117,11.11,0.06763371]
[1672712551003,8.05,11.115,11.11,0.06763371]
[1672712551322,8.1,11.111,11.103,8.1]
[1672712551741,3.0,11.11,11.103,8.1]
[1672712552163,3.06474932,11.11,11.103,8.16212346]
[1672712553212,3.06474932,11.11,11.103,0.06212346]
[1672712553213,11.16474932,11.11,11.103,0.06212346]
[1672712554369,0.06474932,11.11,11.103,8.16212346]
[1672712554682,4.932e-05,11.11,11.109,8.1]
[1672712554895,3.0,11.118,11.109,8.1]
[1672712555109,3.0,11.118,11.112,8.1]
[1672712557212,0.06951669,11.119,11.112,8.1]
[1672712569825,0.06951669,11.119,11.113,8.1]
[1672712577074,8.12951669,11.119,11.111,8.16425712]
[1672712577283,8.05,11.117,11.111,0.06425712]
[1672712577600,11.1,11.116,11.111,0.06425712]
[1672712578019,3.0,11.115,11.111,0.06425712]
[1672712578643,8.1,11.112,11.102,8.1]
[1672712578858,52.99993334,11.115,11.102,8.1]
[1672712578859,8.05,11.11,11.102,8.1]
[1672712579172,3.0,11.109,11.102,8.1]
[1672712579596,3.06317995,11.109,11.102,8.1652511]
[1672712589682,3.06317995,11.109,11.102,0.0652511]
[1672712589997,3.06317995,11.109,11.102,3.37312422]
[1672712592623,8.06,11.108,11.102,3.37312422]
[1672712592829,3.0,11.107,11.102,3.37312422]
[1672712593152,3.0,11.107,11.102,0.0652511]
[1672712597457,8.06,11.108,11.102,0.0652511]
[1672712599246,8.16317995,11.109,11.102,0.0652511]
[1672712599978,8.16317995,11.109,11.102,3.37312422]
[1672712610278,0.06317995,11.109,11.104,8.1]
[1672712610586,7.995e-05,11.109,11.105,8.1]
[1672712610801,7.995e-05,11.109,11.106,3.0]
[1672712611006,8.06,11.113,11.105,8.1]
[1672712611220,3.0,11.114,11.107,8.1]
[1672712611429,3.0,11.114,11.109,8.1]
[1672712611953,0.06866505,11.115,11.109,8.1]
[1672712617000,0.06866505,11.115,11.108,0.06457652]
[1672712617636,0.06866505,11.115,11.108,3.37066371]
[1672712625731,0.06866505,11.115,11.108,7.43066371]
[1672712626045,4.12866505,11.115,11.108,7.43066371]
[1672712626258,4.12866505,11.115,11.108,4.12457652]
[1672712627097,0.06866505,11.115,11.111,4.06]
[1672712642655,0.06866505,11.115,11.114,4.06]
[1672712642865,0.06592041,11.118,11.114,4.06]
[1672712643078,4.12664568,11.12,11.114,4.06]
[1672712650222,4.06,11.118,11.111,4.12901401]
[1672712650434,2.0,11.117,11.111,4.12901401]
[1672712655160,4.06,11.116,11.111,0.06901401]
[1672712683751,4.12268477,11.117,11.111,4.11901401]
[1672712687850,4.06,11.114,11.111,0.06901401]
[1672712688058,4.06,11.114,11.109,0.06311738]
[1672712692785,0.06268477,11.117,11.109,0.06311738]
[1672712692786,4.05,11.112,11.109,0.06311738]
[1672712692999,4.06,11.11,11.107,0.06042362]
[1672712693209,4.06,11.109,11.105,0.06943438]
[1672712693418,4.06,11.109,11.103,0.06155551]
[1672712694787,4.11041938,11.11,11.104,4.06]
[1672712695626,4.06,11.109,11.103,0.06155551]
[1672712719793,4.06,11.107,11.103,0.06155551]
[1672712725570,4.05,11.109,11.103,0.06155551]
[1672712726306,4.06,11.108,11.103,0.06155551]
[1672712730403,4.06,11.106,11.103,0.06155551]
[1672712730611,4.06,11.106,11.101,0.06841716]
[1672712731030,4.06,11.105,11.101,0.06841716]
[1672712731241,4.06,11.102,11.101,0.00841716]
[1672712731560,4.06,11.102,11.093,4.06]
[1672712731771,4.06,11.1,11.093,4.06]
[1672712732295,4.12074167,11.1,11.093,4.12693662]
[1672712737443,0.06074167,11.1,11.095,4.06]
[1672712739434,0.06074167,11.1,11.097,4.06]
[1672712739645,0.06410467,11.102,11.098,4.06]
[1672712739860,0.06733495,11.104,11.098,4.06]
[1672712740070,16.62503738,11.104,11.098,4.06]
[1672712741121,16.62503738,11.104,11.101,4.05]
[1672712741329,16.55770243,11.104,11.103,4.05]
[1672712741539,0.07057707,11.107,11.103,4.05]
[1672712741749,4.06,11.11,11.103,4.05]
[1672712742170,0.06177734,11.109,11.103,4.05]
[1672712764242,0.06177734,11.109,11.105,4.06]
[1672712773905,0.06177734,11.109,11.104,4.05]
[1672712779684,0.06177734,11.109,11.105,4.06]
[1672712785571,7.734e-05,11.109,11.108,4.06]
[1672712785888,4.06,11.118,11.108,4.06]
[1672712786197,4.06,11.118,11.111,4.06]
[1672712786623,4.12036738,11.118,11.111,4.1308494]
[1672712799651,4.06,11.117,11.111,0.0708494]
[1672712802068,4.06,11.112,11.111,0.0708494]
[1672712802278,4.06,11.112,11.094,625.0]
[1672712802279,4.06,11.112,11.104,4.05]
[1672712802487,4.06,11.111,11.104,4.05]
[1672712803225,4.12036168,11.111,11.104,4.11194091]
[1672712814366,0.06036168,11.111,11.106,4.06]
[1672712814578,0.06036168,11.111,11.108,4.06]
[1672712814789,0.06335812,11.113,11.108,4.06]
[1672712816048,0.06335812,11.113,11.109,4.06]
[1672712821095,5.812e-05,11.113,11.11,2.0]
[1672712821304,4.06,11.117,11.111,4.06]
[1672712832025,4.12211937,11.118,11.112,4.06]
[1672712843164,0.06211937,11.118,11.115,4.06]
[1672712843373,575.06443174,11.12,11.115,4.06]
[1672712844734,4.06,11.126,11.119,4.06]
[1672712845789,4.06,11.126,11.119,4.12712182]
[1672712845999,4.12531365,11.126,11.119,4.12712182]
[1672712846314,4.06,11.124,11.119,0.06712182]
[1672712846517,6.06,11.12,11.119,2.182e-05]
[1672712846734,6.06,11.12,11.113,4.06]
[1672712847575,6.12405294,11.12,11.113,4.12288921]
[1672712848625,4.12405294,11.12,11.113,4.12288921]
[1672712859757,0.06405294,11.12,11.114,4.06]
[1672712869634,0.06405294,11.12,11.115,4.06]
[1672712877523,0.06405294,11.12,11.118,4.06]
[1672712877735,575.0,11.124,11.119,6.06]
[1672712879625,575.0,11.124,11.119,4.06]
[1672712885933,0.07001915,11.125,11.119,4.06]
[1672712899703,0.07001915,11.125,11.12,4.06]
[1672712901595,1.915e-05,11.125,11.12,4.06]
[1672712901805,4.06,11.133,11.124,4.06]
[1672712902016,4.06,11.133,11.121,2.0]
[1672712902017,4.06,11.133,11.127,4.05]
[1672712902539,16.52077655,11.132,11.127,4.05]
[1672712902750,20.58077655,11.132,11.126,0.0652597]
[1672712902961,20.58077655,11.132,11.125,4.12344935]
[1672712903589,16.52077655,11.131,11.125,4.12344935]
[1672712910952,4.06,11.128,11.121,4.05]
[1672712911266,6.05,11.127,11.12,4.06]
[1672712912004,6.11427708,11.127,11.12,4.12013364]
[1672712919039,4.11427708,11.127,11.12,4.12013364]
[1672712928505,4.05,11.121,11.114,4.06]
[1672712929662,4.11553485,11.121,11.114,4.12484163]
[1672712931444,4.11553485,11.121,11.114,0.06484163]
[1672712931658,4.06,11.119,11.114,0.06484163]
[1672712950577,4.12553485,11.121,11.115,4.06]
[1672712979689,0.06553485,11.121,11.116,4.06]
[1672712984317,4.07553485,11.121,11.117,4.03]
[1672712999659,4.11553485,11.121,11.116,4.05]
[1672713003758,0.06553485,11.121,11.12,4.01]
[1672713003969,0.07121901,11.124,11.12,4.01]
[1672713004178,4.05,11.125,11.12,4.01]
[1672713010274,0.06556236,11.126,11.123,4.04]
[1672713010483,579.05,11.127,11.123,4.04]
[1672713010694,4.05,11.127,11.123,4.04]
[1672713014790,0.06558337,11.128,11.124,4.05]
[1672713017737,0.06558337,11.128,11.126,4.05]
[1672713017950,0.07116203,11.131,11.127,4.03]
[1672713018159,579.05,11.132,11.127,4.03]
[1672713018369,16.51888579,11.131,11.127,4.03]
[1672713019418,16.51888579,11.131,11.126,4.03]
[1672713022046,16.51888579,11.131,11.13,4.05]
[1672713022259,0.06429385,11.133,11.13,4.05]
[1672713022570,579.02,11.137,11.13,4.05]
[1672713022571,0.07033557,11.135,11.13,4.05]
[1672713022776,4.02,11.137,11.13,4.05]
[1672713022777,0.06658475,11.136,11.13,4.05]
[1672713024145,4.11658475,11.136,11.13,4.05]
[1672713026246,4.02,11.133,11.128,0.06550269]
[1672713026566,4.05,11.13,11.128,0.06550269]
[1672713026777,4.05,11.13,11.125,0.06462827]
[1672713028773,4.01,11.132,11.125,4.09462827]
[1672713029611,4.11301524,11.133,11.127,4.02]
[1672713029826,0.06301524,11.133,11.129,4.03]
[1672713030455,0.06301524,11.133,11.131,4.03]
[1672713030665,0.06876387,11.136,11.131,4.03]
[1672713036553,4.11876387,11.136,11.129,4.05]
[1672713038970,0.06876387,11.136,11.131,4.02]
[1672713049695,4.05,11.133,11.128,0.06781682]
[1672713049907,4.05,11.132,11.128,0.06781682]
[1672713050116,2.0,11.131,11.128,0.06781682]
[1672713050325,2.0,11.131,11.126,0.0697722]
[1672713050743,4.05,11.132,11.126,0.0697722]
[1672713050955,4.07556164,11.133,11.127,4.05]
[1672713052636,0.06556164,11.133,11.128,4.02]
[1672713052846,0.06556164,11.133,11.131,4.02]
[1672713053053,0.06605187,11.136,11.131,4.02]
[1672713053258,4.01,11.138,11.131,4.02]
[1672713053259,0.06712331,11.137,11.131,4.02]
[1672713063133,4.01,11.133,11.13,0.06261498]
[1672713063350,4.01,11.133,11.128,0.06788318]
[1672713063560,4.01,11.133,11.127,0.06569332]
[1672713063772,4.05,11.131,11.127,0.06569332]
[1672713073226,4.05,11.132,11.127,0.06569332]
[1672713094241,4.05,11.128,11.121,4.03]
[1672713095394,4.11413433,11.128,11.121,4.09329191]
[1672713098450,4.07413433,11.128,11.122,4.05]
[1672713108655,0.06413433,11.128,11.124,4.05]
[1672713126530,0.06413433,11.128,11.126,4.05]
[1672713126841,0.07067043,11.131,11.126,4.05]
[1672713127052,0.07141011,11.132,11.126,4.05]
[1672713129043,0.07141011,11.132,11.128,4.05]
[1672713129264,0.07141011,11.132,11.13,4.02]
[1672713129468,0.06673134,11.135,11.13,4.02]
[1672713129680,0.06656033,11.136,11.13,4.02]
[1672713139664,4.11656033,11.136,11.129,4.12018509]
[1672713140611,0.06656033,11.136,11.132,4.05]
[1672713140821,0.06656033,11.136,11.133,4.05]
[1672713141030,0.06061046,11.138,11.133,4.05]
[1672713141243,4.05,11.138,11.132,4.11562456]
[1672713141451,4.05,11.138,11.132,4.05]
[1672713145234,4.05,11.137,11.131,0.06517281]
[1672713147757,4.05,11.138,11.132,4.05]
[1672713152382,0.06430088,11.139,11.134,4.02]
[1672713155634,0.06430088,11.139,11.131,0.06517281]
[1672713155851,0.06430088,11.139,11.135,4.02]
[1672713157112,16.50349267,11.141,11.139,0.00780506]
[1672713157322,4.05,11.142,11.139,0.00780506]
[1672713157955,4.05,11.145,11.139,0.00780506]
[1672713158270,0.06252589,11.144,11.139,0.00780506]
[1672713170249,4.05,11.142,11.139,0.00780506]
[1672713173186,4.05,11.143,11.139,0.00780506]
[1672713185171,4.05,11.143,11.137,4.09067751]
[1672713187271,4.05,11.141,11.137,0.07067751]
[1672713187685,4.05,11.14,11.137,0.07067751]
[1672713187897,4.05,11.14,11.135,0.06162461]
[1672713188111,4.05,11.14,11.134,0.06952186]
[1672713191159,4.12008722,11.141,11.135,4.05]
[1672713199890,4.01,11.14,11.134,4.08952186]
[1672713207768,4.12008722,11.141,11.135,4.05]
[1672713208295,4.05,11.14,11.134,4.11952186]
[1672713223011,0.07008722,11.141,11.134,4.11952186]
[1672713223221,575.0,11.159,11.14,70.28]
[1672713223532,49.0037,11.164,11.142,16.2]
[1672713223743,49.99993334,11.156,11.135,55.2958081]
[1672713223953,3.0,11.155,11.136,3.0]
[1672713224159,0.06469553,11.149,11.145,4.03]
[1672713224369,0.0686535,11.151,11.145,4.03]
[1672713225847,4.05,11.15,11.144,4.02]
[1672713229530,0.0686535,11.151,11.143,0.06769943]
[1672713229531,4.02,11.149,11.143,0.06769943]
[1672713239725,4.05,11.147,11.143,0.06769943]
[1672713245715,4.05,11.144,11.143,0.06769943]
[1672713245920,4.05,11.144,11.14,0.0685637]
[1672713246132,4.05,11.141,11.138,0.0636796]
[1672713246346,4.02,11.139,11.136,0.06684097]
[1672713246552,4.02,11.139,11.134,0.06424813]
[1672713255385,4.05,11.138,11.134,0.06424813]
[1672713287134,4.05,11.136,11.134,0.06424813]
[1672713287346,4.05,11.136,11.131,0.06719145]
[1672713291866,0.0615301,11.137,11.135,4.05]
[1672713292076,0.07078858,11.14,11.135,4.05]
[1672713292286,4.11517565,11.141,11.135,4.05]
[1672713292707,0.06517565,11.141,11.136,4.02]
[1672713322237,4.05,11.14,11.134,0.06592062]
[1672713322447,3.0,11.139,11.134,0.06592062]
[1672713322658,3.0,11.137,11.134,0.06592062]
[1672713322865,3.0,11.137,11.132,4.11682262]
[1672713327594,4.1135055,11.138,11.132,4.11682262]
[1672713339265,4.05,11.136,11.132,0.06682262]
[1672713349352,4.04,11.135,11.132,0.06682262]
[1672713349563,4.04,11.135,11.131,4.02]
[1672713369628,4.04,11.135,11.13,4.08241013]
[1672713373100,4.04,11.132,11.13,0.06241013]
[1672713373311,4.04,11.132,11.128,4.03]
[1672713382035,4.03,11.131,11.127,0.06782642]
[1672713389496,4.03,11.132,11.128,4.02]
[1672713392337,4.04,11.134,11.13,4.02]
[1672713409670,4.04,11.133,11.129,4.04]
[1672713427219,4.04,11.131,11.127,4.10782642]
[1672713443412,4.04,11.132,11.127,4.10782642]
[1672713449718,4.04,11.132,11.128,4.04]
[1672713451605,3.0,11.128,11.127,0.06782642]
[1672713451820,7.04,11.128,11.124,0.06622243]
[1672713452029,7.04,11.128,11.123,4.03]
[1672713453709,7.04,11.128,11.122,0.06000815]
[1672713453922,3.0,11.128,11.125,4.02]
[1672713454234,4.04,11.129,11.125,4.02]
[1672713468632,0.06344287,11.13,11.128,4.02]
[1672713468841,0.06557556,11.133,11.129,4.02]
[1672713469052,4.04,11.134,11.129,4.02]
[1672713476940,4.04,11.131,11.127,4.10593532]
[1672713477260,3.0,11.13,11.127,4.10593532]
[1672713477464,3.0,11.13,11.127,4.04]
[1672713477673,7.03,11.13,11.126,4.02]
[1672713479148,4.03,11.13,11.126,4.02]
[1672713499114,4.04,11.128,11.125,0.06718847]
[1672713499323,4.04,11.128,11.115,103.5727]
[1672713499324,7.04,11.127,11.123,0.06621162]
[1672713499536,7.04,11.127,11.122,4.04]
[1672713500690,4.04,11.128,11.124,4.02]
[1672713513412,0.07110616,11.129,11.127,4.04]
[1672713513624,4.03,11.131,11.127,4.04]
[1672713516252,4.04,11.129,11.125,4.02]
[1672713519400,4.04,11.13,11.124,4.12040485]
[1672713519614,3.0,11.129,11.124,4.12040485]
[1672713521396,4.04,11.13,11.124,4.12040485]
[1672713529702,4.02,11.129,11.124,0.07040485]
[1672713529909,3.0,11.128,11.124,0.07040485]
[1672713533064,4.02,11.129,11.124,0.07040485]
[1672713539687,4.02,11.13,11.124,4.09040485]
[1672713539896,3.0,11.129,11.124,4.09040485]
[1672713541894,4.02,11.13,11.124,4.09040485]
[1672713558184,575.06560364,11.132,11.128,4.01]
[1672713558503,579.05,11.137,11.13,4.01]
[1672713558818,3.0,11.136,11.13,4.01]
[1672713559658,579.11151684,11.137,11.13,4.01]
[1672713571428,575.06151684,11.137,11.132,4.01]
[1672713573314,579.11151684,11.137,11.13,4.02]
[1672713586242,575.06151684,11.137,11.132,4.02]
[1672713586451,575.06151684,11.137,11.135,4.01]
[1672713586663,0.07136618,11.14,11.135,4.01]
[1672713587083,3.07136618,11.14,11.135,4.01]
[1672713587395,0.07136618,11.14,11.135,4.01]
[1672713612205,4.05,11.139,11.133,4.04]
[1672713612413,3.0,11.138,11.133,4.04]
[1672713614408,3.0,11.138,11.134,4.04]
[1672713614619,7.04,11.138,11.134,4.04]
[1672713615882,4.04,11.138,11.134,4.04]
[1672713629644,4.02,11.139,11.134,4.04]
[1672713629854,4.02,11.139,11.135,4.0]
[1672713639620,4.02,11.139,11.132,0.06574465]
[1672713639940,4.09136618,11.14,11.136,4.01]
[1672713646131,0.07136618,11.14,11.139,4.01]
[1672713646344,0.06897504,11.143,11.14,0.15512415]
[1672713646558,0.06035445,11.145,11.142,4.01]
[1672713646771,3.0,11.146,11.142,4.01]
[1672713646980,4.08417281,11.147,11.142,4.01]
[1672713648451,0.06417281,11.147,11.144,4.01]
[1672713648662,4.04,11.148,11.144,4.01]
[1672713651287,3.81040876,11.148,11.144,4.01]
[1672713654442,4.05336239,11.149,11.143,4.01]
[1672713655276,0.06336239,11.149,11.145,4.03]
[1672713657492,0.06336239,11.149,11.147,4.03]
[1672713657702,0.06845706,11.152,11.147,4.03]
[1672713657911,16.55622635,11.152,11.147,4.03]
[1672713661692,53.7294,11.157,11.15,4.02]
[1672713661905,4.0,11.157,11.15,4.02]
[1672713662640,4.06277365,11.157,11.15,4.08405233]
[1672713662852,4.02,11.155,11.15,0.06405233]
[1672713663799,4.05277365,11.157,11.15,4.09405233]
[1672713667051,4.03,11.155,11.15,0.06405233]
[1672713667268,4.03,11.151,11.15,0.06405233]
[1672713667582,4.03,11.151,11.144,4.03]
[1672713667891,4.09104397,11.151,11.144,4.03]
[1672713668107,0.06104397,11.151,11.145,4.03]
[1672713668952,4.0,11.159,11.15,4.03]
[1672713669262,4.0,11.159,11.146,2.0]
[1672713669263,4.0,11.159,11.153,4.03]
[1672713669467,49.99993334,11.166,11.147,4.03]
[1672713669468,3.99,11.154,11.147,4.03]
[1672713669683,2.0,11.151,11.145,4.02]
[1672713671473,4.08585289,11.152,11.145,4.02]
[1672713688288,4.02,11.149,11.144,0.07065432]
[1672713699013,4.02,11.147,11.144,0.07065432]
[1672713699225,4.02,11.147,11.142,0.06193541]
[1672713699430,4.02,11.147,11.141,0.06222355]
[1672713712043,4.02,11.145,11.141,0.06222355]
[1672713712254,4.03,11.143,11.141,0.06222355]
[1672713712465,4.03,11.143,11.14,0.15512415]
[1672713712990,4.06380039,11.146,11.14,4.17512415]
[1672713718451,0.06380039,11.146,11.141,4.03]
[1672713721181,4.06380039,11.146,11.14,4.18512415]
[1672713732748,4.02,11.141,11.14,0.15512415]
[1672713733064,4.02,11.141,11.14,0.00512415]
[1672713750092,4.02,11.141,11.138,0.07071146]
[1672713750405,4.02,11.141,11.136,0.06708303]
[1672713750616,4.02,11.141,11.135,0.06513716]
[1672713759654,4.0,11.142,11.135,4.09513716]
[1672713769637,4.0,11.142,11.136,4.01]
[1672713774369,0.06487516,11.143,11.139,4.03]
[1672713774570,0.06487516,11.143,11.141,4.03]
[1672713774788,0.06957428,11.146,11.141,4.03]
[1672713783928,4.03,11.144,11.138,4.08041409]
[1672713784145,3.99,11.142,11.138,0.07041409]
[1672713788242,4.02,11.145,11.139,4.02]
[1672713804214,0.06957428,11.146,11.143,4.03]
[1672713804425,575.06305882,11.148,11.143,4.03]
[1672713808523,562.5019355,11.148,11.144,4.03]
[1672713808845,579.0,11.154,11.147,4.03]
[1672713809792,579.0,11.154,11.147,4.09028531]
[1672713811147,558.9875,11.154,11.153,4.02]
[1672713811365,4.0,11.16,11.153,4.02]
[1672713811677,4.0,11.16,11.153,4.09090722]
[1672713839845,4.02,11.159,11.153,0.07090722]
[1672713851926,877.0,11.165,11.158,4.03]
[1672713852129,4.02,11.166,11.159,4.03]
[1672713853922,3.99,11.163,11.158,0.06077013]
[1672713854132,4.03,11.161,11.158,0.06077013]
[1672713854341,4.03,11.161,11.156,0.0627092]
[1672713858126,4.02,11.159,11.156,0.0627092]
[1672713858338,4.02,11.159,11.154,0.07076306]
[1672713866972,4.02,11.161,11.155,4.03]
[1672713876946,4.02,11.159,11.154,0.07076306]
[1672713884207,579.03,11.164,11.157,4.03]
[1672713884414,579.03,11.164,11.157,4.09679414]
[1672713884730,16.47269418,11.163,11.157,4.09679414]
[1672713885145,16.47269418,11.163,11.159,4.02]
[1672713885570,3.99,11.165,11.159,4.02]
[1672713893974,4.0,11.163,11.157,4.08679414]
[1672713894182,2.0,11.162,11.157,4.02]
[1672713896808,6.0,11.163,11.157,4.02]
[1672713897752,4.0,11.161,11.156,0.0679155]
[1672713909418,4.0,11.16,11.156,0.0679155]
[1672713919716,4.03,11.159,11.156,0.0679155]
[1672713920029,4.03,11.159,11.154,0.06067098]
[1672713920240,4.03,11.159,11.153,0.0683839]
[1672713923178,4.02,11.154,11.147,4.03]
[1672713923394,4.02,11.152,11.145,4.01]
[1672713924129,4.08963067,11.152,11.145,4.07236226]
[1672713926020,4.0,11.151,11.145,0.06236226]
[1672713928541,4.09963067,11.152,11.146,4.03]
[1672713929064,4.09963067,11.152,11.145,0.06236226]
[1672713929065,0.06963067,11.152,11.147,4.03]
[1672713932951,4.08963067,11.152,11.145,4.09236226]
[1672713959639,0.06963067,11.152,11.147,4.03]
[1672713962370,0.06963067,11.152,11.148,4.03]
[1672713963951,0.06963067,11.152,11.147,4.01]
[1672713979710,4.06963067,11.152,11.146,4.03]
[1672713980970,0.06963067,11.152,11.148,4.03]
[1672713982649,4.06963067,11.152,11.146,4.03]
[1672713986533,4.02,11.151,11.145,0.06236226]
[1672713986743,4.02,11.148,11.145,6.226e-05]
[1672713986958,4.02,11.148,11.142,4.01]
[1672713999680,4.08730289,11.149,11.143,4.01]
[1672714006191,3.99,11.148,11.141,4.09433545]
[1672714006401,2.0,11.147,11.141,4.09433545]
[1672714007451,3.99,11.146,11.141,0.06433545]
[1672714012805,2.0,11.147,11.141,0.06433545]
[1672714013023,4.0,11.145,11.141,0.06433545]
[1672714016178,6.03,11.147,11.141,0.06433545]
[1672714021432,4.03,11.147,11.141,0.06433545]
[1672714029738,4.03,11.148,11.141,4.09433545]
[1672714033000,0.06730289,11.149,11.146,4.03]
[1672714033210,578.99,11.153,11.146,4.03]
[1672714033418,579.05910407,11.153,11.146,4.03]
[1672714034682,4.0,11.151,11.145,4.03]
[1672714042143,575.06910407,11.153,11.147,4.01]
[1672714050656,4.0,11.151,11.145,4.03]
[1672714050866,2.0,11.15,11.145,4.03]
[1672714054017,6.03,11.15,11.144,0.06062597]
[1672714054332,4.0,11.149,11.144,0.06062597]
[1672714082819,4.02,11.147,11.144,0.06062597]
[1672714083024,4.02,11.147,11.142,0.06286084]
[1672714083230,4.02,11.147,11.14,4.02]
[1672714083231,4.02,11.147,11.141,0.06330922]
[1672714083657,4.06467456,11.148,11.141,4.09330922]
[1672714089223,4.02,11.147,11.142,4.03]
[1672714089435,4.09467456,11.148,11.143,4.04]
[1672714096476,0.06467456,11.148,11.145,4.0]
[1672714096684,4.09848073,11.15,11.145,4.0]
[1672714109714,4.09848073,11.15,11.146,4.03]
[1672714113081,0.06848073,11.15,11.147,4.04]
[1672714113395,4.0893699,11.152,11.147,4.04]
[1672714116864,4.02,11.151,11.146,4.0]
[1672714119383,4.04,11.149,11.144,4.09656893]
[1672714131160,4.02,11.147,11.144,0.06656893]
[1672714131364,4.02,11.147,11.126,67.41]
[1672714131365,4.04,11.145,11.138,4.04]
[1672714131575,4.04,11.142,11.138,4.04]
[1672714131790,4.03,11.144,11.139,4.04]
[1672714132105,4.03,11.145,11.14,4.04]
[1672714132421,2.07057981,11.146,11.142,4.0]
[1672714132734,0.07057981,11.146,11.142,4.0]
[1672714137149,0.07057981,11.146,11.144,4.04]
[1672714137463,4.02,11.148,11.144,4.04]
[1672714140716,4.02,11.148,11.143,4.03]
[1672714140929,4.09203652,11.149,11.143,4.03]
[1672714149863,4.03,11.148,11.142,4.0639844]
[1672714151547,0.06203652,11.149,11.145,4.03]